[Event "Chpt France Universitaire 2024"]
[Site "Bastia, France"]
[Date "2024.04.06"]
[Round "4.12"]
[White "Fetiveau, Arthur"]
[Black "Lordier, Sophia"]
[Result "0-1"]
[TimeControl "15min+5s"]
[WhiteElo "2087"]
[BlackElo "1934"]

1. e4 {[%clk 00:15:05]} {[%emt 00:00:02]} c5 {[%clk 00:15:05]} {[%emt
00:00:01]} 2. Nf3 {[%clk 00:15:05]} {[%emt 00:00:01]} d6 {[%clk 00:15:05]}
{[%emt 00:00:02]} 3. d4 {[%clk 00:15:05]} {[%emt 00:00:01]} cxd4 {[%clk
00:15:05]} {[%emt 00:00:01]} 4. Nxd4 {[%clk 00:15:05]} {[%emt 00:00:01]} Nf6
{[%clk 00:15:05]} 5. Nc3 {[%clk 00:15:05]} {[%emt 00:00:01]} a6 {[%clk
00:15:05]} {[%emt 00:00:03]} 6. Bd3 {[%clk 00:15:05]} {[%emt 00:00:02]} b5
{[%clk 00:15:05]} {[%emt 00:00:05]} 7. a4 {[%clk 00:13:50]} {[%emt 00:01:21]}
b4 {[%clk 00:14:54]} {[%emt 00:00:17]} 8. Nd5 {[%clk 00:12:49]} {[%emt
00:01:06]} e5 {[%clk 00:14:12]} {[%emt 00:00:47]} 9. Nxf6+ {[%clk 00:11:37]}
{[%emt 00:01:17]} Qxf6 {[%clk 00:14:03]} {[%emt 00:00:14]} 10. Nb3 {[%clk
00:11:09]} {[%emt 00:00:33]} Be7 {[%clk 00:12:02]} {[%emt 00:02:06]} 11. a5
{[%clk 00:11:09]} {[%emt 00:00:03]} Bb7 {[%clk 00:11:43]} {[%emt 00:00:24]} 12.
O-O {[%clk 00:10:35]} {[%emt 00:00:39]} O-O {[%clk 00:11:43]} {[%emt 00:00:02]}
13. Be3 {[%clk 00:10:21]} {[%emt 00:00:19]} Nd7 {[%clk 00:11:33]} {[%emt
00:00:15]} 14. Qd2 {[%clk 00:10:18]} {[%emt 00:00:08]} Rab8 {[%clk 00:11:14]}
{[%emt 00:00:24]} 15. Ra4 {[%clk 00:08:39]} {[%emt 00:01:44]} Nc5 {[%clk
00:11:06]} {[%emt 00:00:13]} 16. Nxc5 {[%clk 00:07:41]} {[%emt 00:01:03]} dxc5
{[%clk 00:11:06]} {[%emt 00:00:01]} 17. Qe2 {[%clk 00:07:41]} {[%emt 00:00:01]}
Bc6 {[%clk 00:10:57]} {[%emt 00:00:13]} 18. Raa1 {[%clk 00:07:35]} {[%emt
00:00:11]} Bb5 {[%clk 00:10:44]} {[%emt 00:00:19]} 19. Bc4 {[%clk 00:07:28]}
{[%emt 00:00:12]} Qc6 {[%clk 00:09:48]} {[%emt 00:01:00]} 20. f3 {[%clk
00:07:28]} {[%emt 00:00:02]} Qc7 {[%clk 00:09:12]} {[%emt 00:00:40]} 21. Rfd1
{[%clk 00:07:24]} {[%emt 00:00:10]} Bxc4 {[%clk 00:08:52]} {[%emt 00:00:25]} 22.
Qxc4 {[%clk 00:07:24]} {[%emt 00:00:04]} Rb5 {[%clk 00:08:52]} {[%emt
00:00:04]} 23. Rd5 {[%clk 00:06:53]} {[%emt 00:00:35]} Rd8 {[%clk 00:07:50]}
{[%emt 00:01:06]} 24. Rad1 {[%clk 00:05:36]} {[%emt 00:01:23]} Rxd5 {[%clk
00:06:33]} {[%emt 00:01:22]} 25. Qxd5 {[%clk 00:05:36]} {[%emt 00:00:02]} Rb8
{[%clk 00:06:33]} {[%emt 00:00:03]} 26. Qd7 {[%clk 00:04:37]} {[%emt 00:01:04]}
Rc8 {[%clk 00:06:06]} {[%emt 00:00:32]} 27. Rd5 {[%clk 00:04:24]} {[%emt
00:00:18]} Qxd7 {[%clk 00:05:08]} {[%emt 00:01:03]} 28. Rxd7 {[%clk 00:04:24]}
{[%emt 00:00:02]} Bd8 {[%clk 00:05:05]} {[%emt 00:00:07]} 29. Ra7 {[%clk
00:04:09]} {[%emt 00:00:20]} Bxa5 {[%clk 00:05:05]} {[%emt 00:00:05]} 30. Rxa6
{[%clk 00:04:09]} {[%emt 00:00:01]} Bd8 {[%clk 00:05:01]} {[%emt 00:00:09]} 31.
Kf2 {[%clk 00:04:07]} {[%emt 00:00:07]} Kf8 {[%clk 00:04:52]} {[%emt 00:00:14]}
32. Ra7 {[%clk 00:04:07]} {[%emt 00:00:02]} Be7 {[%clk 00:04:36]} {[%emt
00:00:20]} 33. Ke2 {[%clk 00:03:55]} {[%emt 00:00:17]} c4 {[%clk 00:04:13]}
{[%emt 00:00:29]} 34. b3 {[%clk 00:03:24]} {[%emt 00:00:37]} cxb3 {[%clk
00:04:03]} {[%emt 00:00:15]} 35. cxb3 {[%clk 00:03:24]} {[%emt 00:00:01]} f6
{[%clk 00:03:59]} {[%emt 00:00:08]} 36. Bd2 {[%clk 00:03:24]} {[%emt 00:00:05]}
Rc2 {[%clk 00:03:44]} {[%emt 00:00:20]} 37. Rd7 {[%clk 00:02:48]} {[%emt
00:00:41]} Rb2 {[%clk 00:03:30]} {[%emt 00:00:19]} 38. Rd3 {[%clk 00:02:48]}
{[%emt 00:00:01]} Kf7 {[%clk 00:02:58]} {[%emt 00:00:37]} 39. Kd1 {[%clk
00:02:48]} {[%emt 00:00:02]} Ke6 {[%clk 00:02:57]} {[%emt 00:00:06]} 40. Kc1
{[%clk 00:02:48]} {[%emt 00:00:02]} Ra2 {[%clk 00:02:57]} {[%emt 00:00:02]} 41.
Kb1 {[%clk 00:02:48]} {[%emt 00:00:01]} Ra7 {[%clk 00:02:42]} {[%emt 00:00:19]}
42. Kb2 {[%clk 00:02:48]} {[%emt 00:00:02]} g6 {[%clk 00:02:35]} {[%emt
00:00:12]} 43. Rd5 {[%clk 00:02:48]} {[%emt 00:00:04]} Rb7 {[%clk 00:02:33]}
{[%emt 00:00:07]} 44. Kc2 {[%clk 00:02:32]} {[%emt 00:00:21]} f5 {[%clk
00:02:31]} {[%emt 00:00:07]} 45. Kd3 {[%clk 00:02:28]} {[%emt 00:00:08]} Ra7
{[%clk 00:02:01]} {[%emt 00:00:35]} 46. Kc4 {[%clk 00:02:13]} {[%emt 00:00:21]}
Rc7+ {[%clk 00:01:58]} {[%emt 00:00:07]} 47. Kd3 {[%clk 00:02:13]} Ra7 {[%clk
00:01:58]} {[%emt 00:00:04]} 48. Rb5 {[%clk 00:01:49]} {[%emt 00:00:29]} Rd7+
{[%clk 00:01:58]} {[%emt 00:00:02]} 49. Ke2 {[%clk 00:01:49]} {[%emt 00:00:01]}
Rd4 {[%clk 00:01:55]} {[%emt 00:00:07]} 50. Be3 {[%clk 00:01:46]} {[%emt
00:00:08]} Rd7 {[%clk 00:01:55]} {[%emt 00:00:04]} 51. Rb6+ {[%clk 00:01:46]}
{[%emt 00:00:03]} Kf7 {[%clk 00:01:49]} {[%emt 00:00:10]} 52. Bd2 {[%clk
00:01:46]} {[%emt 00:00:05]} Rd4 {[%clk 00:01:25]} {[%emt 00:00:29]} 53. Rb7
{[%clk 00:01:29]} {[%emt 00:00:22]} Ke6 {[%clk 00:01:25]} {[%emt 00:00:04]} 54.
Rb6+ {[%clk 00:01:29]} {[%emt 00:00:01]} Kf7 {[%clk 00:01:22]} {[%emt
00:00:08]} 55. exf5 {[%clk 00:01:28]} {[%emt 00:00:07]} gxf5 {[%clk 00:01:22]}
{[%emt 00:00:02]} 56. Be3 {[%clk 00:01:28]} {[%emt 00:00:01]} Rd5 {[%clk
00:01:17]} {[%emt 00:00:08]} 57. Rh6 {[%clk 00:01:16]} {[%emt 00:00:18]} Kg7
{[%clk 00:01:14]} {[%emt 00:00:07]} 58. Re6 {[%clk 00:01:12]} {[%emt 00:00:09]}
Kf7 {[%clk 00:01:14]} 59. Rb6 {[%clk 00:01:10]} {[%emt 00:00:07]} e4 {[%clk
00:00:56]} {[%emt 00:00:24]} 60. fxe4 fxe4 {[%clk 00:00:56]} 61. Bd2 {[%clk
00:01:07]} {[%emt 00:00:08]} Rd4 {[%clk 00:00:34]} {[%emt 00:00:27]} 62. Be1
{[%clk 00:01:07]} {[%emt 00:00:01]} Ke8 {[%clk 00:00:22]} {[%emt 00:00:16]} 63.
Rb7 {[%clk 00:01:07]} {[%emt 00:00:01]} Bd6 {[%clk 00:00:22]} {[%emt 00:00:04]}
64. h3 {[%clk 00:01:00]} {[%emt 00:00:14]} Be7 {[%clk 00:00:21]} {[%emt
00:00:05]} 65. Ke3 {[%clk 00:00:55]} {[%emt 00:00:10]} Rd3+ {[%clk 00:00:21]}
{[%emt 00:00:01]} 66. Kxe4 {[%clk 00:00:55]} {[%emt 00:00:02]} Rxb3 {[%clk
00:00:21]} {[%emt 00:00:01]} 67. Kd5 {[%clk 00:00:38]} {[%emt 00:00:21]} Rb1
{[%clk 00:00:21]} {[%emt 00:00:04]} 68. Bf2 {[%clk 00:00:17]} {[%emt 00:00:26]}
Rb2 {[%clk 00:00:21]} {[%emt 00:00:06]} 69. Bc5 {[%clk 00:00:10]} {[%emt
00:00:12]} Rd2+ {[%clk 00:00:21]} {[%emt 00:00:04]} 70. Kc4 {[%clk 00:00:06]}
{[%emt 00:00:09]} Rc2+ {[%clk 00:00:21]} {[%emt 00:00:02]} 71. Kxb4 {[%emt
00:00:04]} Bxc5+ {[%clk 00:00:18]} {[%emt 00:00:07]} 72. Kb3 {[%clk 00:00:06]}
Rxg2 {[%clk 00:00:16]} {[%emt 00:00:07]} 73. Rxh7 {[%clk 00:00:06]} {[%emt
00:00:01]} Kf8 {[%clk 00:00:10]} {[%emt 00:00:11]} 74. Kc4 {[%clk 00:00:06]}
{[%emt 00:00:01]} Be7 {[%clk 00:00:10]} 75. Kd5 {[%clk 00:00:06]} {[%emt
00:00:02]} Bf6 {[%clk 00:00:10]} {[%emt 00:00:01]} 76. Ke6 {[%clk 00:00:06]}
{[%emt 00:00:04]} Bg7 {[%clk 00:00:10]} {[%emt 00:00:04]} 77. Rh5 {[%clk
00:00:06]} {[%emt 00:00:02]} Re2+ {[%clk 00:00:10]} {[%emt 00:00:03]} 78. Kd6
{[%clk 00:00:06]} {[%emt 00:00:02]} Rf2 {[%clk 00:00:10]} {[%emt 00:00:01]} 79.
Ke6 {[%clk 00:00:06]} {[%emt 00:00:02]} Kg8 {[%clk 00:00:10]} {[%emt 00:00:01]}
80. Rh4 {[%clk 00:00:06]} {[%emt 00:00:04]} Rf6+ {[%clk 00:00:10]} {[%emt
00:00:02]} 81. Kd5 {[%clk 00:00:06]} {[%emt 00:00:01]} Kf7 {[%clk 00:00:10]} 82.
Rg4 {[%clk 00:00:06]} {[%emt 00:00:01]} Bh6 {[%clk 00:00:10]} {[%emt 00:00:03]}
83. Rg3 {[%clk 00:00:06]} {[%emt 00:00:01]} Rf5+ {[%clk 00:00:10]} {[%emt
00:00:02]} 84. Ke4 {[%clk 00:00:06]} {[%emt 00:00:01]} Kf6 {[%clk 00:00:10]}
{[%emt 00:00:01]} 85. Rb3 {[%clk 00:00:06]} {[%emt 00:00:02]} Rf4+ {[%clk
00:00:10]} {[%emt 00:00:03]} 86. Kd5 {[%clk 00:00:06]} {[%emt 00:00:02]} Kg5
{[%clk 00:00:10]} {[%emt 00:00:01]} 87. Rb6 {[%clk 00:00:06]} {[%emt 00:00:05]}
Kh5 {[%clk 00:00:10]} {[%emt 00:00:02]} 88. Ke5 {[%clk 00:00:06]} {[%emt
00:00:03]} Rf2 {[%clk 00:00:10]} {[%emt 00:00:01]} 89. Ke4 {[%clk 00:00:06]}
{[%emt 00:00:03]} Rf4+ {[%clk 00:00:10]} {[%emt 00:00:02]} 90. Ke5 {[%clk
00:00:06]} {[%emt 00:00:01]} Rh4 {[%clk 00:00:10]} {[%emt 00:00:01]} 91. Rb3
{[%clk 00:00:06]} {[%emt 00:00:03]} Bf4+ {[%clk 00:00:10]} {[%emt 00:00:01]} 92.
Kf5 {[%clk 00:00:06]} {[%emt 00:00:01]} Bh6 {[%clk 00:00:10]} {[%emt 00:00:02]}
93. Rd3 {[%clk 00:00:06]} {[%emt 00:00:02]} Rf4+ {[%clk 00:00:10]} {[%emt
00:00:01]} 94. Ke5 {[%clk 00:00:06]} {[%emt 00:00:01]} Kh4 {[%clk 00:00:10]} 95.
Rb3 {[%clk 00:00:06]} {[%emt 00:00:01]} Rf8 {[%clk 00:00:10]} {[%emt 00:00:01]}
96. Ke6 {[%clk 00:00:06]} {[%emt 00:00:02]} Rg8 {[%clk 00:00:10]} 97. Kf5
{[%clk 00:00:06]} {[%emt 00:00:01]} Rg5+ {[%clk 00:00:10]} {[%emt 00:00:01]} 98.
Ke4 {[%clk 00:00:06]} {[%emt 00:00:02]} Rg2 {[%clk 00:00:10]} {[%emt 00:00:01]}
99. Kf5 {[%clk 00:00:06]} {[%emt 00:00:02]} Rf2+ {[%clk 00:00:10]} {[%emt
00:00:01]} 100. Ke5 {[%clk 00:00:06]} {[%emt 00:00:02]} Bf4+ {[%clk 00:00:10]}
{[%emt 00:00:01]} 101. Ke4 {[%clk 00:00:06]} {[%emt 00:00:01]} Bg3 {[%clk
00:00:10]} 102. Rb7 {[%clk 00:00:06]} {[%emt 00:00:03]} Kxh3 {[%clk 00:00:10]}
{[%emt 00:00:02]} 103. Ke3 {[%clk 00:00:06]} {[%emt 00:00:04]} Kg2 {[%clk
00:00:10]} {[%emt 00:00:02]} 104. Rd7 {[%clk 00:00:06]} {[%emt 00:00:04]} Rf3+
{[%clk 00:00:10]} {[%emt 00:00:02]} 105. Ke2 {[%clk 00:00:06]} {[%emt
00:00:02]} Rf2+ {[%emt 00:00:01]} 106. Ke3 {[%emt 00:00:01]} Bf4+ {[%clk
00:00:10]} {[%emt 00:00:02]} 107. Ke4 {[%clk 00:00:06]} {[%emt 00:00:01]} Bg3
{[%clk 00:00:08]} {[%emt 00:00:07]} 108. Ke3 {[%clk 00:00:06]} {[%emt
00:00:02]} Rf6 {[%clk 00:00:08]} {[%emt 00:00:04]} 109. Rd2+ {[%clk 00:00:06]}
{[%emt 00:00:04]} Kh3 {[%clk 00:00:08]} {[%emt 00:00:01]} 110. Rd7 {[%clk
00:00:06]} {[%emt 00:00:02]} Bf4+ {[%clk 00:00:08]} {[%emt 00:00:02]} 111. Ke4
{[%clk 00:00:06]} {[%emt 00:00:05]} Kg4 {[%clk 00:00:08]} {[%emt 00:00:01]} 112.
Rg7 {[%clk 00:00:06]} Bg5 {[%clk 00:00:08]} {[%emt 00:00:02]} 113. Rg8 {[%clk
00:00:06]} {[%emt 00:00:01]} Rf4+ {[%clk 00:00:08]} {[%emt 00:00:02]} 114. Ke5
{[%clk 00:00:06]} {[%emt 00:00:01]} Rf2 {[%clk 00:00:08]} {[%emt 00:00:01]} 115.
Ke4 {[%clk 00:00:06]} {[%emt 00:00:02]} Re2+ {[%clk 00:00:08]} {[%emt
00:00:02]} 116. Kd3 {[%clk 00:00:06]} Re7 {[%clk 00:00:08]} {[%emt 00:00:01]}
117. Kd4 {[%clk 00:00:06]} {[%emt 00:00:02]} Kf5 {[%clk 00:00:08]} {[%emt
00:00:02]} 118. Kd5 {[%clk 00:00:06]} {[%emt 00:00:01]} Rd7+ {[%clk 00:00:08]}
{[%emt 00:00:02]} 119. Kc6 {[%clk 00:00:06]} Rd3 {[%clk 00:00:08]} 120. Kc5
{[%clk 00:00:06]} {[%emt 00:00:01]} Bf6 {[%clk 00:00:08]} 121. Kc4 {[%clk
00:00:06]} {[%emt 00:00:02]} Rd7 {[%clk 00:00:08]} 122. Kc5 {[%clk 00:00:06]}
{[%emt 00:00:02]} Ke4 {[%clk 00:00:08]} {[%emt 00:00:01]} 123. Rg4+ {[%clk
00:00:06]} {[%emt 00:00:02]} Ke5 {[%clk 00:00:08]} {[%emt 00:00:01]} 124. Rg2
{[%clk 00:00:06]} {[%emt 00:00:03]} Rc7+ {[%clk 00:00:08]} {[%emt 00:00:01]}
125. Kb6 {[%clk 00:00:06]} Rc3 {[%clk 00:00:08]} 126. Kb5 {[%clk 00:00:06]}
{[%emt 00:00:02]} Kd5 {[%clk 00:00:08]} {[%emt 00:00:02]} 127. Rh2 {[%clk
00:00:06]} {[%emt 00:00:03]} Rb3+ {[%clk 00:00:08]} {[%emt 00:00:02]} 128. Ka4
{[%clk 00:00:06]} Rb7 {[%clk 00:00:08]} 129. Ka5 {[%clk 00:00:06]} {[%emt
00:00:05]} Be5 {[%clk 00:00:08]} {[%emt 00:00:02]} 130. Rh4 {[%clk 00:00:06]}
{[%emt 00:00:02]} Kc5 {[%clk 00:00:08]} {[%emt 00:00:02]} 131. Ka6 {[%clk
00:00:06]} {[%emt 00:00:02]} Rb2 {[%clk 00:00:08]} {[%emt 00:00:01]} 132. Rh5
{[%clk 00:00:06]} {[%emt 00:00:03]} Kd5 {[%clk 00:00:08]} {[%emt 00:00:03]} 133.
Ka5 {[%clk 00:00:06]} {[%emt 00:00:02]} Kd4 {[%clk 00:00:08]} {[%emt 00:00:02]}
134. Ka4 {[%clk 00:00:06]} {[%emt 00:00:03]} Bd6 {[%clk 00:00:08]} 135. Ka5
{[%clk 00:00:06]} {[%emt 00:00:05]} Kc4 {[%clk 00:00:08]} {[%emt 00:00:02]} 136.
Ka6 {[%clk 00:00:06]} {[%emt 00:00:03]} Bc5 {[%clk 00:00:08]} {[%emt 00:00:03]}
137. Rg5 {[%clk 00:00:06]} {[%emt 00:00:05]} Rb6+ {[%clk 00:00:08]} {[%emt
00:00:05]} 138. Ka5 {[%clk 00:00:06]} {[%emt 00:00:04]} Rb7 {[%clk 00:00:08]}
{[%emt 00:00:01]} 139. Rg4+ {[%clk 00:00:06]} {[%emt 00:00:05]} Bd4 {[%clk
00:00:08]} 0-1

[Event "Chpt France Universitaire 2024"]
[Site "Bastia, France"]
[Date "2024.04.06"]
[Round "5.1"]
[White "Rakotomaharo, Fy Antenaina"]
[Black "Eveno, Nathan"]
[Result "1-0"]
[TimeControl "15min+5s"]
[WhiteElo "2448"]
[BlackElo "2192"]

1. e4 {[%clk 00:15:05]} {[%emt 00:00:02]} c5 {[%clk 00:15:05]} {[%emt
00:00:02]} 2. a4 {[%clk 00:15:05]} {[%emt 00:00:02]} d6 {[%clk 00:14:49]}
{[%emt 00:00:21]} 3. Bb5+ {[%clk 00:15:05]} {[%emt 00:00:02]} Nd7 {[%clk
00:14:21]} {[%emt 00:00:34]} 4. f4 {[%clk 00:15:00]} {[%emt 00:00:10]} a6
{[%clk 00:14:21]} {[%emt 00:00:05]} 5. Be2 {[%clk 00:15:00]} {[%emt 00:00:03]}
Ngf6 {[%clk 00:14:21]} {[%emt 00:00:03]} 6. d3 {[%clk 00:15:00]} {[%emt
00:00:03]} b6 {[%clk 00:14:12]} {[%emt 00:00:15]} 7. Nf3 {[%clk 00:15:00]}
{[%emt 00:00:03]} e6 {[%clk 00:13:44]} {[%emt 00:00:33]} 8. c4 {[%clk
00:15:00]} {[%emt 00:00:04]} Be7 {[%clk 00:13:13]} {[%emt 00:00:37]} 9. Nc3
{[%clk 00:14:58]} {[%emt 00:00:07]} Bb7 {[%clk 00:13:13]} {[%emt 00:00:05]} 10.
O-O {[%clk 00:13:45]} {[%emt 00:01:17]} O-O {[%clk 00:13:08]} {[%emt 00:00:10]}
11. Qe1 {[%clk 00:13:45]} {[%emt 00:00:02]} d5 {[%clk 00:10:54]} {[%emt
00:02:19]} 12. e5 {[%clk 00:13:36]} {[%emt 00:00:13]} Ne8 {[%clk 00:10:54]}
{[%emt 00:00:05]} 13. cxd5 {[%clk 00:13:11]} {[%emt 00:00:31]} exd5 {[%clk
00:10:54]} {[%emt 00:00:02]} 14. f5 {[%clk 00:13:11]} {[%emt 00:00:02]} d4
{[%clk 00:10:24]} {[%emt 00:00:35]} 15. Ne4 {[%clk 00:13:11]} {[%emt 00:00:02]}
Bxe4 {[%clk 00:10:24]} {[%emt 00:00:02]} 16. dxe4 {[%clk 00:13:11]} {[%emt
00:00:01]} d3 {[%clk 00:10:24]} {[%emt 00:00:03]} 17. Bxd3 {[%clk 00:12:34]}
{[%emt 00:00:41]} Nxe5 {[%clk 00:10:24]} {[%emt 00:00:04]} 18. Nxe5 {[%clk
00:12:26]} {[%emt 00:00:13]} Qd4+ {[%clk 00:10:24]} {[%emt 00:00:02]} 19. Qf2
{[%clk 00:11:58]} {[%emt 00:00:32]} Qxe5 {[%clk 00:10:23]} {[%emt 00:00:07]} 20.
Bf4 {[%clk 00:11:57]} {[%emt 00:00:06]} Qd4 {[%clk 00:09:36]} {[%emt 00:00:53]}
21. Qxd4 {[%clk 00:11:52]} {[%emt 00:00:10]} cxd4 {[%clk 00:09:36]} {[%emt
00:00:02]} 22. Rfc1 {[%clk 00:11:13]} {[%emt 00:00:44]} Bc5 {[%clk 00:09:08]}
{[%emt 00:00:33]} 23. a5 {[%clk 00:11:11]} {[%emt 00:00:06]} Nf6 {[%clk
00:08:36]} {[%emt 00:00:37]} 24. b4 {[%clk 00:10:59]} {[%emt 00:00:17]} Bxb4
{[%clk 00:07:10]} {[%emt 00:01:31]} 25. axb6 {[%clk 00:10:59]} {[%emt
00:00:02]} Nd7 {[%clk 00:07:10]} {[%emt 00:00:02]} 26. b7 {[%clk 00:10:06]}
{[%emt 00:00:57]} Ra7 {[%clk 00:06:42]} {[%emt 00:00:34]} 27. Bxa6 {[%clk
00:10:06]} {[%emt 00:00:04]} Bc3 {[%clk 00:06:23]} {[%emt 00:00:23]} 28. Rxc3
{[%clk 00:08:49]} {[%emt 00:01:22]} dxc3 {[%clk 00:06:23]} {[%emt 00:00:04]} 29.
Be3 {[%clk 00:08:49]} {[%emt 00:00:02]} Rxa6 {[%clk 00:05:51]} {[%emt
00:00:38]} 30. Rxa6 {[%clk 00:08:49]} {[%emt 00:00:01]} Rb8 {[%clk 00:05:18]}
{[%emt 00:00:37]} 31. Ra8 {[%clk 00:08:20]} {[%emt 00:00:33]} c2 {[%clk
00:03:54]} {[%emt 00:01:30]} 32. Kf1 {[%clk 00:08:11]} {[%emt 00:00:13]} Kf8
{[%clk 00:03:51]} {[%emt 00:00:08]} 33. Ke2 {[%clk 00:08:10]} {[%emt 00:00:06]}
Ke7 {[%clk 00:03:44]} {[%emt 00:00:13]} 34. Rxb8 {[%clk 00:08:10]} {[%emt
00:00:02]} Nxb8 {[%clk 00:03:42]} {[%emt 00:00:07]} 35. Kd2 {[%clk 00:08:10]}
{[%emt 00:00:02]} 1-0

[Event "Chpt France Universitaire 2024"]
[Site "Bastia, France"]
[Date "2024.04.06"]
[Round "5.2"]
[White "Roux, Baptiste"]
[Black "Gatineau, Yovann"]
[Result "1-0"]
[TimeControl "15min+5s"]
[WhiteElo "2361"]
[BlackElo "2408"]

1. e4 {[%clk 00:15:05]} {[%emt 00:00:02]} e6 {[%clk 00:15:05]} {[%emt
00:00:01]} 2. d4 {[%clk 00:15:05]} {[%emt 00:00:05]} d5 {[%clk 00:15:05]} 3.
Bd3 {[%clk 00:14:57]} {[%emt 00:00:14]} dxe4 {[%clk 00:15:05]} {[%emt
00:00:03]} 4. Bxe4 {[%clk 00:14:57]} {[%emt 00:00:01]} Nf6 {[%clk 00:15:05]}
{[%emt 00:00:01]} 5. Bf3 {[%clk 00:14:57]} c5 {[%clk 00:15:03]} {[%emt
00:00:07]} 6. Ne2 {[%clk 00:14:57]} {[%emt 00:00:01]} Be7 {[%clk 00:14:29]}
{[%emt 00:00:39]} 7. O-O {[%clk 00:14:49]} {[%emt 00:00:13]} O-O {[%clk
00:14:29]} {[%emt 00:00:02]} 8. Nbc3 {[%clk 00:14:48]} {[%emt 00:00:06]} Nc6
{[%clk 00:13:51]} {[%emt 00:00:43]} 9. Be3 {[%clk 00:14:48]} {[%emt 00:00:04]}
cxd4 {[%clk 00:13:16]} {[%emt 00:00:40]} 10. Nxd4 {[%clk 00:14:48]} {[%emt
00:00:02]} Ne5 {[%clk 00:13:16]} {[%emt 00:00:04]} 11. Qe2 {[%clk 00:14:37]}
{[%emt 00:00:16]} a6 {[%clk 00:12:39]} {[%emt 00:00:41]} 12. Rad1 {[%clk
00:14:37]} {[%emt 00:00:05]} Qc7 {[%clk 00:12:36]} {[%emt 00:00:08]} 13. Rfe1
{[%clk 00:14:37]} {[%emt 00:00:02]} Bd7 {[%clk 00:06:33]} {[%emt 00:06:08]} 14.
Bf4 {[%clk 00:14:37]} {[%emt 00:00:04]} Nxf3+ {[%clk 00:06:33]} {[%emt
00:00:03]} 15. Qxf3 {[%clk 00:14:37]} {[%emt 00:00:01]} Qb6 {[%clk 00:06:17]}
{[%emt 00:00:21]} 16. Be5 {[%clk 00:14:37]} {[%emt 00:00:02]} Rad8 {[%clk
00:04:54]} {[%emt 00:01:28]} 17. Qg3 {[%clk 00:14:37]} {[%emt 00:00:04]} Nh5
{[%clk 00:04:38]} {[%emt 00:00:22]} 18. Qf3 {[%clk 00:14:26]} {[%emt 00:00:16]}
Nf6 {[%clk 00:03:32]} {[%emt 00:01:11]} 19. Qg3 {[%clk 00:14:26]} {[%emt
00:00:01]} Nh5 {[%clk 00:03:32]} 20. Qh3 {[%clk 00:13:53]} {[%emt 00:00:37]} g6
{[%clk 00:02:57]} {[%emt 00:00:41]} 21. g4 {[%clk 00:12:32]} {[%emt 00:01:26]}
Ng7 {[%clk 00:02:57]} {[%emt 00:00:04]} 22. Qg3 {[%clk 00:12:16]} {[%emt
00:00:22]} Rc8 {[%clk 00:02:01]} {[%emt 00:01:01]} 23. Nf5 {[%clk 00:11:08]}
{[%emt 00:01:12]} exf5 {[%clk 00:01:31]} {[%emt 00:00:35]} 24. Nd5 {[%clk
00:10:48]} {[%emt 00:00:26]} Qd8 {[%clk 00:00:27]} {[%emt 00:01:09]} 25. Nxe7+
{[%clk 00:10:41]} {[%emt 00:00:12]} Qxe7 {[%clk 00:00:27]} {[%emt 00:00:01]} 26.
Bxg7 {[%clk 00:10:41]} {[%emt 00:00:01]} Be6 {[%clk 00:00:27]} {[%emt
00:00:04]} 27. Bxf8 {[%clk 00:10:13]} {[%emt 00:00:33]} Qxf8 {[%clk 00:00:27]}
{[%emt 00:00:01]} 28. gxf5 {[%clk 00:09:35]} {[%emt 00:00:43]} Bxf5 {[%clk
00:00:27]} 29. c3 {[%clk 00:09:35]} {[%emt 00:00:02]} Rc4 {[%clk 00:00:13]}
{[%emt 00:00:20]} 30. Rd4 {[%clk 00:09:27]} {[%emt 00:00:13]} Rxd4 {[%clk
00:00:09]} {[%emt 00:00:09]} 31. cxd4 {[%clk 00:09:27]} {[%emt 00:00:01]} Qb4
{[%clk 00:00:09]} 32. Re8+ {[%clk 00:08:51]} {[%emt 00:00:41]} Kg7 {[%clk
00:00:09]} 33. Qe5+ {[%clk 00:08:51]} {[%emt 00:00:04]} Kh6 {[%clk 00:00:09]}
{[%emt 00:00:01]} 34. Qe3+ {[%clk 00:07:38]} {[%emt 00:01:17]} Kg7 {[%clk
00:00:09]} {[%emt 00:00:01]} 35. Qc3 {[%clk 00:07:38]} {[%emt 00:00:03]} Qa4
{[%clk 00:00:09]} {[%emt 00:00:05]} 36. Re1 {[%clk 00:06:34]} {[%emt 00:01:09]}
Qxa2 {[%clk 00:00:09]} {[%emt 00:00:02]} 37. d5+ {[%clk 00:06:32]} {[%emt
00:00:07]} Kh6 {[%clk 00:00:09]} 38. Qd2+ {[%clk 00:06:25]} {[%emt 00:00:12]}
Kg7 {[%clk 00:00:09]} {[%emt 00:00:03]} 39. Qd4+ {[%clk 00:06:25]} {[%emt
00:00:01]} Kh6 {[%clk 00:00:09]} {[%emt 00:00:01]} 40. d6 {[%clk 00:06:25]}
{[%emt 00:00:06]} Qa5 {[%clk 00:00:07]} {[%emt 00:00:07]} 41. Qf4+ {[%clk
00:05:48]} {[%emt 00:00:42]} Kh5 {[%clk 00:00:07]} {[%emt 00:00:02]} 42. Rd1
{[%clk 00:04:33]} {[%emt 00:01:20]} Qd8 {[%clk 00:00:07]} {[%emt 00:00:02]} 43.
d7 {[%clk 00:04:13]} {[%emt 00:00:25]} Bg4 {[%clk 00:00:07]} {[%emt 00:00:04]}
44. Rd5+ {[%clk 00:04:11]} {[%emt 00:00:07]} f5 {[%clk 00:00:07]} {[%emt
00:00:02]} 45. f3 {[%clk 00:03:42]} {[%emt 00:00:34]} Bh3 {[%clk 00:00:07]} 46.
Qg3 {[%clk 00:03:07]} {[%emt 00:00:40]} 1-0